bitfinex/quotes_BTCUSD_20251219
["timestamp","ask_amount","ask_price","bid_price","bid_amount"]
[1766113526800,0.05564798,86146.0,86120.0,0.00010994]
[1766113527004,0.54758,86144.0,86120.0,0.00010994]
[1766113527382,0.01160887,86141.0,86120.0,0.00010994]
[1766113527596,0.4951,86139.0,86120.0,0.00010994]
[1766113527798,0.4951,86137.0,86120.0,0.00010994]
[1766113528067,0.05564798,86132.0,86108.0,0.006]
[1766113528217,0.5011,86131.0,86108.0,0.00010989]
[1766113528539,0.4951,86129.0,86108.0,0.00010989]
[1766113528741,0.006,86131.0,86108.0,0.00010989]
[1766113528742,1.06641,86127.0,86108.0,0.00010989]
[1766113528971,0.4951,86127.0,86108.0,0.00010989]
[1766113529527,0.4951,86127.0,86108.0,0.01172321]
[1766113529728,0.006,86126.0,86108.0,0.00010989]
[1766113530533,0.006,86126.0,86108.0,0.01172321]
[1766113530938,0.006,86126.0,86108.0,0.00010989]
[1766113531965,0.00596,86125.0,86108.0,0.00010989]
[1766113532187,0.57131,86124.0,86108.0,0.00010989]
[1766113532305,0.00596,86125.0,86108.0,0.01172321]
[1766113532730,0.00596,86125.0,86108.0,0.24398874]
[1766113533390,0.00596,86125.0,86108.0,0.00010989]
[1766113533591,0.57131,86136.0,86108.0,0.00010989]
[1766113533592,0.57131,86136.0,86114.0,0.01161251]
[1766113533798,0.57131,86136.0,86108.0,0.01404587]
[1766113533799,0.57131,86146.0,86118.0,0.01161197]
[1766113534026,0.4951,86136.0,86112.0,0.01161278]
[1766113534228,0.00596,86135.0,86112.0,0.01161278]
[1766113534430,0.005334,86135.0,86115.0,0.01161237]
[1766113534581,0.005334,86135.0,86113.0,0.24386516]
[1766113535036,0.005334,86135.0,86115.0,0.01161237]
[1766113535238,0.005334,86135.0,86119.0,0.01161183]
[1766113535538,0.005334,86135.0,86113.0,0.16567]
[1766113535539,0.04648,86151.0,86132.0,0.60003]
[1766113535743,0.00596,86150.0,86130.0,1.06533829]
[1766113535920,0.00596,86150.0,86132.0,0.01161008]
[1766113536122,0.00596,86150.0,86131.0,0.60003]
[1766113536480,0.00596,86150.0,86130.0,1.06533829]
[1766113538315,0.001099,86130.0,86125.0,0.00596]
[1766113538509,0.00542809,86138.0,86125.0,0.00596]
[1766113538719,0.00596,86139.0,86125.0,0.00596]
[1766113539718,0.00596,86139.0,86129.0,1.06533829]
[1766113540801,0.00596,86140.0,86129.0,1.29754766]
[1766113541104,0.00596,86142.0,86129.0,1.06533829]
[1766113541304,0.00596,86142.0,86129.0,1.07694878]
[1766113541545,0.00596,86142.0,86129.0,1.06533829]
[1766113542332,0.00596,86142.0,86130.0,0.01161035]
[1766113542535,0.00596,86142.0,86129.0,1.06533829]
[1766113542536,0.00596,86142.0,86129.0,1.30915772]
[1766113542771,0.4951,86151.0,86129.0,1.07694878]
[1766113543097,0.00596,86150.0,86130.0,0.01161035]
[1766113543227,0.00596,86150.0,86130.0,0.02442481]
[1766113543430,0.00596,86150.0,86134.0,0.23219435]
[1766113543715,0.00596,86150.0,86128.0,0.01161062]
[1766113543716,0.04648,86164.0,86141.0,0.14236]
[1766113543946,0.00596,86163.0,86141.0,0.70937]
[1766113544341,0.00596,86163.0,86142.0,0.02444351]
[1766113544551,0.00596,86163.0,86143.0,0.02444351]
[1766113544683,0.00596,86163.0,86138.0,0.01160927]
[1766113544684,0.05564798,86147.0,86142.0,3.4e-06]
[1766113544886,1.08966,86146.0,86125.0,0.00596]
[1766113545096,0.0001096,86147.0,86134.0,0.56701]
[1766113545291,0.00596,86148.0,86134.0,0.56701]
[1766113545621,0.00596,86154.0,86138.0,0.56701]
[1766113545818,0.00596,86154.0,86139.0,0.01160914]
[1766113546142,0.00596,86154.0,86140.0,1.06533829]
[1766113546896,0.00596,86156.0,86140.0,1.06533829]
[1766113547546,0.00596,86156.0,86141.0,0.56701]
[1766113547997,0.00596,86156.0,86141.0,0.57861887]
[1766113548406,0.00596,86156.0,86142.0,0.01160873]
[1766113548752,0.00596,86156.0,86143.0,0.0116086]
[1766113548970,0.00596,86156.0,86142.0,0.01160873]
[1766113549182,0.47,86172.0,86142.0,0.01160873]
[1766113549183,0.6137,86180.0,86156.0,0.001099]
[1766113549378,0.04648,86173.0,86156.0,0.001099]
[1766113549832,0.04648,86173.0,86151.0,0.04051201]
[1766113550010,0.04648,86173.0,86152.0,0.56701]
[1766113550207,0.04648,86173.0,86154.0,0.04051201]
[1766113550460,0.04648,86173.0,86155.0,0.04051201]
[1766113550665,0.00596,86172.0,86156.0,0.04051201]
[1766113551155,1.08966,86172.0,86155.0,0.04051201]
[1766113552739,0.00596,86172.0,86160.0,1.06533829]
[1766113553220,0.00596,86171.0,86160.0,1.06533829]
[1766113553354,0.04648,86179.0,86161.0,0.01160617]
[1766113553557,0.00596,86178.0,86171.0,0.001099]
[1766113553762,0.00596,86178.0,86154.0,0.06033096]
[1766113553763,0.01160442,86174.0,86154.0,0.06033096]
[1766113553962,0.01160442,86174.0,86148.0,0.06033096]
[1766113553963,0.47,86171.0,86148.0,0.06033096]
[1766113554189,0.00596,86170.0,86147.0,0.00596]
[1766113554560,0.47,86169.0,86147.0,0.00596]
[1766113554764,0.47,86169.0,86147.0,0.06629096]
[1766113554971,0.47,86169.0,86147.0,0.00596]
[1766113555753,0.05564798,86161.0,86142.0,0.06033096]
[1766113555884,0.00596,86160.0,86143.0,0.00596]
[1766113556091,0.00596,86159.0,86143.0,0.00596]
[1766113556287,0.00587653,86159.0,86143.0,0.00596]
[1766113557039,0.00587653,86159.0,86144.0,0.59155963]
[1766113557198,0.00596,86159.0,86145.0,0.02454963]
[1766113557397,0.00596,86159.0,86146.0,0.02454963]
[1766113557607,0.00596,86159.0,86147.0,0.02454963]
[1766113557891,0.00596,86159.0,86148.0,0.02454963]
[1766113558101,0.00596,86159.0,86149.0,0.02454963]
[1766113558248,0.00596,86159.0,86150.0,0.02454963]
[1766113558449,0.00596,86159.0,86151.0,0.02454963]
[1766113558653,0.00596,86159.0,86152.0,0.02454963]
[1766113558954,0.00596,86159.0,86153.0,0.02454963]
[1766113559184,0.00596,86159.0,86154.0,0.02454963]
[1766113559396,0.00596,86159.0,86155.0,0.02454963]
[1766113559593,0.00596,86159.0,86156.0,0.02454963]
[1766113559794,0.00596,86159.0,86157.0,0.02454963]
[1766113559972,0.00596,86159.0,86145.0,0.56701]
[1766113560376,0.47,86182.0,86159.0,0.001099]
[1766113560578,0.01160415,86176.0,86153.0,0.00596]
[1766113560919,0.01160415,86176.0,86151.0,0.12626]
[1766113560920,0.05564798,86168.0,86145.0,0.00596]
[1766113561074,0.00596,86177.0,86152.0,0.12626]
[1766113561075,0.00596,86167.0,86152.0,0.12626]
[1766113561275,0.00596,86173.0,86155.0,0.72396755]
[1766113561480,0.00596,86173.0,86152.0,0.00596]
[1766113561481,0.00596,86173.0,86160.0,1.63234829]
[1766113561802,0.00596,86173.0,86155.0,0.03069755]
[1766113562002,0.00596,86173.0,86156.0,0.03069755]
[1766113562342,1.0837,86172.0,86155.0,0.03069755]
[1766113562524,0.05564798,86168.0,86154.0,0.03069755]
[1766113563499,0.47,86172.0,86154.0,0.03069755]
[1766113563700,0.47,86172.0,86155.0,0.03069755]
[1766113564129,0.00596,86173.0,86158.0,0.58668]
[1766113564335,0.00596,86173.0,86157.0,0.03069755]
[1766113564537,0.00596,86173.0,86156.0,0.03069755]
[1766113564737,0.00596,86173.0,86157.0,0.03069755]
[1766113565153,0.00596,86173.0,86156.0,0.03069755]
[1766113565316,0.48073668,86178.0,86153.0,0.01160725]
[1766113565317,0.48073668,86178.0,86158.0,0.58668]
[1766113565536,0.00596,86177.0,86159.0,0.58668]
[1766113566932,0.60925,86181.0,86159.0,0.58668]
[1766113566933,0.00596,86176.0,86159.0,0.58668]
[1766113567137,0.05564798,86184.0,86157.0,0.13222]
[1766113567138,0.04648,86196.0,86176.0,0.001099]
[1766113567312,0.00596,86195.0,86177.0,0.58668]
[1766113568528,0.00596,86195.0,86180.0,1.06533829]
[1766113569772,0.04648,86201.0,86195.0,0.001099]
[1766113569915,0.04648,86201.0,86188.0,0.58668]
[1766113570114,0.00596,86204.0,86191.0,0.67738]
[1766113570365,0.48037,86229.0,86208.0,0.01159985]
[1766113570569,0.00596,86230.0,86212.0,0.66039]
[1766113570768,0.00596,86230.0,86209.0,0.01755971]
[1766113570769,0.00596,86229.0,86209.0,0.00596]
[1766113570998,0.00596,86229.0,86194.0,0.03069755]
[1766113570999,0.48037,86215.0,86194.0,0.03069755]
[1766113571205,0.48037,86213.0,86195.0,0.00596]
[1766113571400,0.00596,86214.0,86196.0,0.58668]
[1766113572019,0.00596,86214.0,86197.0,0.02448846]
[1766113572249,0.00596,86214.0,86198.0,0.00596]
[1766113573045,0.00596,86214.0,86198.0,0.61243]
[1766113573449,0.00596,86214.0,86200.0,1.06309422]
[1766113574016,0.00596,86214.0,86198.0,0.00596]
[1766113574230,0.00596,86214.0,86200.0,1.06309422]
[1766113574435,0.00596,86214.0,86198.0,0.00596]
[1766113574636,0.00596,86214.0,86200.0,0.72491373]
[1766113574836,0.00596,86214.0,86198.0,0.00596]
[1766113575265,0.46298,86214.0,86198.0,0.00596]
[1766113575818,0.32803824,86213.0,86191.0,0.60647]
[1766113576027,0.01159931,86212.0,86195.0,0.00592]
[1766113576232,0.01159985,86208.0,86192.0,0.02446152]
[1766113576430,0.01755904,86214.0,86174.0,0.21429]
[1766113576431,0.01160133,86197.0,86174.0,0.21429]
[1766113576641,0.59002,86199.0,86167.0,0.23210649]
[1766113576642,0.04648,86230.0,86220.0,0.21429]
[1766113576836,0.0002,86260.0,86243.0,0.19609]
[1766113576837,0.04648,86245.0,86243.0,0.19609]
[1766113576986,0.13948,86295.0,86247.0,0.10293]
[1766113576987,0.04648,86255.0,86247.0,0.10293]
[1766113577188,1.07254038,86300.0,86248.0,0.01391336]
[1766113577392,0.05564798,86267.0,86240.0,0.95682363]
[1766113577590,0.05564798,86267.0,86240.0,0.72491373]
[1766113577591,0.64246,86266.0,86240.0,0.72491373]
[1766113577856,0.51266798,86265.0,86240.0,0.72491373]
[1766113578063,0.51266798,86265.0,86235.0,0.10293]
[1766113578064,0.45702,86262.0,86235.0,0.10293]
[1766113578268,0.05564798,86250.0,86226.0,0.11452743]
[1766113578473,0.05564798,86237.0,86213.0,0.10293]
[1766113578695,0.00596,86236.0,86213.0,0.10293]
[1766113578902,0.00596,86236.0,86214.0,0.02437417]
[1766113579083,0.45702,86232.0,86207.0,0.01159998]
[1766113579278,0.45702,86232.0,86202.0,0.60647]
[1766113579279,0.04648,86231.0,86206.0,0.02438004]
[1766113579484,0.04648,86231.0,86202.0,0.61807065]
[1766113579485,0.04648,86231.0,86205.0,0.01160025]
[1766113579639,0.0465899,86231.0,86208.0,0.60647]
[1766113579844,0.0465899,86231.0,86208.0,0.61806985]
[1766113580048,0.0524,86230.0,86210.0,0.73651331]
[1766113580414,0.0524,86229.0,86211.0,0.24358664]
[1766113580694,0.0524,86228.0,86211.0,0.01159944]
[1766113580850,0.0524,86228.0,86210.0,0.72491373]
[1766113581054,0.0524,86228.0,86210.0,0.01159958]
[1766113581260,0.0524,86228.0,86210.0,0.73651331]
[1766113581456,0.0001099,86231.0,86217.0,0.01159864]
[1766113581671,0.45702,86263.0,86236.0,0.01159608]
[1766113581972,0.50942,86262.0,86240.0,0.72491373]
[1766113582298,0.45702,86262.0,86240.0,0.72491373]
[1766113582500,0.0524,86261.0,86240.0,0.72491373]
[1766113582798,0.52101272,86261.0,86240.0,0.72491373]
[1766113583009,0.00592,86260.0,86240.0,0.72491373]
[1766113583220,0.45702,86261.0,86240.0,0.72491373]
[1766113583424,0.45702,86261.0,86229.0,0.01159702]
[1766113583425,0.05564798,86252.0,86229.0,0.01159702]
[1766113583629,0.05564798,86252.0,86230.0,0.72491373]
[1766113583630,0.00592,86251.0,86230.0,0.72491373]
[1766113583759,0.05564798,86239.0,86212.0,0.33428405]
[1766113583968,0.05564798,86239.0,86214.0,0.01159904]
[1766113583969,0.0524,86238.0,86214.0,0.01159904]
[1766113584162,0.0524,86238.0,86210.0,1.33138373]
[1766113584163,0.46861595,86237.0,86210.0,1.33138373]
[1766113584405,0.46861595,86237.0,86210.0,0.72491373]
[1766113584406,0.23191964,86237.0,86210.0,0.72491373]
[1766113584597,1.04704,86233.0,86210.0,0.72491373]
[1766113585037,0.45702,86232.0,86210.0,0.72491373]
[1766113585193,0.00592,86231.0,86210.0,0.72491373]
[1766113585399,0.00592,86231.0,86210.0,0.72502363]
[1766113585801,0.46294,86231.0,86210.0,0.72502363]
[1766113587340,0.46294,86231.0,86210.0,0.0001099]
[1766113587540,0.46294,86231.0,86210.0,0.72502363]
[1766113588203,0.46294,86231.0,86210.0,0.0001099]
[1766113588333,0.46294,86231.0,86210.0,0.72502363]
[1766113588537,0.46294,86231.0,86210.0,0.0001099]
[1766113588739,0.46294,86231.0,86210.0,0.72502363]
[1766113589564,0.46294,86231.0,86210.0,0.0001099]
[1766113589781,0.46294,86231.0,86210.0,0.72502363]
[1766113590174,0.23192029,86237.0,86210.0,0.72502363]
[1766113590175,0.05564798,86265.0,86231.0,0.001099]
[1766113590417,0.05564798,86252.0,86231.0,0.001099]
[1766113590647,0.00592,86251.0,86231.0,0.001099]
[1766113590793,0.05564798,86252.0,86230.0,1.33138373]
[1766113590999,0.04644,86251.0,86236.0,0.60647]
[1766113591224,0.00592,86250.0,86230.0,0.72491373]
[1766113591428,0.00592,86250.0,86231.0,0.60647]
[1766113592813,0.45702,86247.0,86221.0,1.0]
[1766113593119,0.45702,86247.0,86226.0,0.01159743]
[1766113593322,0.45702,86247.0,86230.0,0.72491373]
[1766113593661,0.05564798,86249.0,86230.0,0.72491373]
[1766113594487,0.05236,86248.0,86230.0,0.72491373]
[1766113594668,0.00592,86247.0,86230.0,0.72491373]
[1766113595055,0.59002,86257.0,86230.0,0.72491373]
[1766113595210,0.05564798,86250.0,86230.0,0.72491373]
[1766113595417,0.00592,86249.0,86229.0,0.60647]
[1766113595619,0.00592,86249.0,86230.0,0.72491373]
[1766113595835,0.00592,86249.0,86230.0,0.72462181]
[1766113596193,0.00592,86249.0,86230.0,0.72432991]
[1766113596397,0.05564798,86250.0,86230.0,0.72432991]
[1766113596630,0.45702,86256.0,86240.0,0.72491373]
[1766113596989,0.05564798,86251.0,86240.0,0.72491373]
[1766113597197,0.05564798,86251.0,86231.0,0.60647]
[1766113597469,0.05564798,86251.0,86232.0,0.02441664]
[1766113598270,0.05564798,86251.0,86222.0,0.03054854]
[1766113598481,0.45702,86244.0,86223.0,0.02444209]
[1766113598681,0.00592,86243.0,86224.0,0.02444209]
[1766113598884,0.00592,86243.0,86225.0,0.02444209]
[1766113599127,0.00592,86243.0,86226.0,0.02444209]
[1766113599280,0.00592,86243.0,86227.0,0.02444209]
[1766113599481,0.45702,86244.0,86228.0,0.02444209]
[1766113599704,0.45702,86244.0,86229.0,0.02444209]
[1766113599705,0.00592,86242.0,86229.0,0.02444209]
[1766113599854,0.00592,86242.0,86230.0,0.02444209]
[1766113600054,0.00592,86242.0,86231.0,0.02444209]
[1766113600252,0.05564798,86251.0,86224.0,0.24355044]
[1766113600253,0.45702,86260.0,86242.0,0.001099]
[1766113600452,0.45702,86260.0,86240.0,0.72491373]
[1766113600453,0.05236,86259.0,86240.0,0.72491373]
[1766113600702,0.45702,86260.0,86240.0,0.72491373]
[1766113600896,0.45702,86260.0,86241.0,0.02444967]
[1766113600897,0.05236,86259.0,86241.0,0.02444967]
[1766113601101,0.45702,86260.0,86242.0,0.02444967]
[1766113601366,0.45702,86271.0,86260.0,0.001099]
[1766113601549,0.08510013,86297.0,86260.0,0.72491373]
[1766113601550,0.04644,86270.0,86260.0,0.72491373]
[1766113601861,0.45702,86282.0,86261.0,0.63091905]
[1766113602059,0.45702,86282.0,86269.0,0.01159164]
[1766113602254,0.45702,86282.0,86264.0,0.01159232]
[1766113602427,0.05236,86281.0,86265.0,0.0244273]
[1766113602598,0.05236,86281.0,86266.0,0.0244273]
[1766113602797,0.05236,86281.0,86267.0,0.0244273]
[1766113603042,0.05236,86281.0,86268.0,0.0244273]
[1766113603251,0.05236,86281.0,86262.0,0.03601989]
[1766113603448,0.05236,86281.0,86261.0,0.61806272]
[1766113603449,0.05236,86281.0,86263.0,0.0244273]
[1766113603769,0.45738648,86282.0,86264.0,0.0244273]
[1766113603942,0.05236,86280.0,86265.0,0.0244273]
[1766113604141,0.05236,86280.0,86266.0,0.0244273]
[1766113604498,0.61418,86274.0,86254.0,0.03054854]
[1766113604786,0.61418,86268.0,86243.0,0.03054854]
[1766113604994,0.70551858,86267.0,86241.0,0.58166]
[1766113605148,0.46776,86267.0,86250.0,0.72491373]
[1766113605353,0.05236,86266.0,86250.0,0.72491373]
[1766113605753,0.46776,86262.0,86241.0,0.58166]
[1766113605972,0.46776,86262.0,86240.0,0.72491373]
[1766113605973,0.05564798,86250.0,86232.0,0.03054854]
[1766113606177,0.05236,86249.0,86232.0,1.0]
[1766113606536,0.05236,86249.0,86231.0,0.61220854]
[1766113607012,0.05236,86249.0,86229.0,0.03054854]
[1766113607013,0.05564798,86248.0,86229.0,0.03054854]
[1766113607164,0.05564798,86248.0,86230.0,0.72491373]
[1766113607794,0.05236,86249.0,86230.0,0.72491373]
[1766113608157,0.05236,86248.0,86230.0,0.72491373]
[1766113608408,0.05564798,86247.0,86230.0,0.72491373]
[1766113610481,0.00592,86246.0,86230.0,0.72491373]
[1766113610686,0.05236,86246.0,86230.0,0.72491373]
[1766113611950,0.05564798,86247.0,86230.0,0.72491373]
[1766113612130,0.05236,86245.0,86230.0,0.72491373]
[1766113612526,0.61418,86253.0,86232.0,0.01159662]
[1766113612733,0.24344746,86261.0,86240.0,0.72491373]
[1766113612928,0.00592,86256.0,86240.0,0.72491373]
[1766113613135,0.05236,86256.0,86240.0,0.72491373]
[1766113613348,0.61418,86255.0,86233.0,0.58166]
[1766113613548,0.05236,86254.0,86240.0,0.72491373]
[1766113614181,0.61418,86255.0,86240.0,0.72491373]
[1766113614383,0.00010988,86257.0,86240.0,0.72491373]
[1766113614384,0.00010988,86257.0,86241.0,0.01159541]
[1766113614530,0.05236,86256.0,86247.0,0.72491373]
[1766113614725,0.05236,86255.0,86247.0,0.72491373]
[1766113614970,0.00010988,86257.0,86247.0,0.72491373]
[1766113615169,0.05236,86254.0,86247.0,0.72491373]
[1766113615559,0.00010988,86257.0,86247.0,0.72491373]
[1766113615838,0.05236,86256.0,86247.0,0.72491373]
[1766113616545,0.05236,86256.0,86248.0,0.02445711]
[1766113616687,0.05236,86255.0,86249.0,0.02445711]
[1766113616887,0.05236,86255.0,86250.0,0.02445711]
[1766113617188,0.05236,86255.0,86240.0,0.04214408]
[1766113617189,0.001099,86250.0,86248.0,0.02445711]
[1766113617427,0.00592,86249.0,86241.0,0.02445965]
[1766113617605,0.00592,86249.0,86240.0,0.72491373]
[1766113617606,0.00592,86249.0,86242.0,0.02445965]
[1766113617806,0.00592,86249.0,86243.0,0.02445965]
[1766113617984,0.00592,86249.0,86244.0,0.02445965]
[1766113618187,0.00592,86249.0,86245.0,0.02445965]
[1766113618419,0.05236,86248.0,86246.0,0.02445965]
[1766113618615,0.00010988,86257.0,86247.0,0.02446967]
[1766113618814,0.00010988,86257.0,86240.0,0.72491373]
[1766113618815,0.00010988,86257.0,86248.0,0.02446967]
[1766113619090,0.00010988,86257.0,86247.0,0.72491373]
[1766113619293,0.05236,86256.0,86248.0,0.02446953]
[1766113619527,0.05236,86256.0,86241.0,0.58166]
[1766113619528,0.05236,86256.0,86249.0,0.02446953]
[1766113619736,0.05236,86256.0,86242.0,0.02446953]
[1766113619936,0.05236,86256.0,86243.0,0.02446953]
[1766113620163,0.05236,86256.0,86244.0,0.02446953]
[1766113620379,0.61418,86253.0,86245.0,0.02446953]
[1766113620566,1.08194,86250.0,86230.0,0.72491373]
[1766113620784,0.00010988,86257.0,86241.0,0.58166]
[1766113621192,0.00592,86256.0,86247.0,0.72491373]
[1766113621399,0.00592,86256.0,86240.0,0.72491373]
[1766113621621,0.47368,86256.0,86237.0,1.0]
[1766113621759,0.47368,86256.0,86240.0,0.72491373]
[1766113622520,0.46776,86256.0,86240.0,0.72491373]
[1766113622672,0.00010988,86257.0,86240.0,0.72491373]
[1766113622673,0.05236,86255.0,86240.0,0.72491373]
[1766113622871,0.05236,86255.0,86240.0,1.32566373]
[1766113623091,0.00010988,86257.0,86240.0,1.32566373]
[1766113623261,0.05236,86256.0,86240.0,1.32566373]
[1766113623867,0.05236,86256.0,86241.0,0.60075]
[1766113625076,0.05236,86255.0,86241.0,0.60075]
[1766113625271,0.00010988,86257.0,86241.0,0.60075]
[1766113625474,0.00010988,86257.0,86247.0,1.32566373]
[1766113625761,0.00592,86256.0,86247.0,1.32566373]
[1766113625890,0.00010988,86257.0,86247.0,1.32566373]
[1766113626096,0.00592,86256.0,86247.0,1.32566373]
[1766113626882,0.06432201,86303.0,86256.0,0.60075]
[1766113627114,0.06432201,86303.0,86290.0,0.72491373]
[1766113627115,0.00592,86302.0,86290.0,0.72491373]
[1766113627326,0.00036641,86303.0,86290.0,0.72491373]
[1766113627566,0.05236,86302.0,86280.0,1.32566373]
[1766113627729,0.58634,86299.0,86280.0,0.72491373]
[1766113627959,1.0468,86298.0,86280.0,0.72491373]
[1766113628165,0.00036641,86303.0,86288.0,0.72491373]
[1766113628434,0.04644,86315.0,86303.0,0.000366]
[1766113628770,0.05236,86314.0,86300.0,0.72491373]
[1766113628948,0.00010989,86315.0,86300.0,0.72491373]
[1766113629451,0.00592,86314.0,86301.0,0.60075]
[1766113629655,0.00010989,86315.0,86314.0,0.001099]
[1766113629975,0.00010989,86315.0,86294.0,0.00592]
[1766113629976,0.00602989,86315.0,86294.0,0.00592]
[1766113630094,0.00602989,86315.0,86300.0,0.72491373]
[1766113630663,0.00592,86314.0,86300.0,1.32566373]
[1766113630912,0.47204708,86303.0,86284.0,1.0]
[1766113631095,0.05236,86302.0,86283.0,0.66384304]
[1766113631294,0.05236,86302.0,86290.0,0.72491373]
[1766113631704,0.58634,86318.0,86291.0,0.01390643]
[1766113631935,0.58634,86318.0,86281.0,0.00592]
[1766113631936,0.05236,86314.0,86279.0,0.0011]
[1766113632085,0.46046,86312.0,86290.0,0.72491373]
[1766113632293,0.06723318,86317.0,86284.0,0.23179184]
[1766113632294,1.0468,86321.0,86300.0,0.72491373]
[1766113632498,0.00592,86311.0,86300.0,0.72491373]
[1766113633200,0.0115852,86317.0,86300.0,0.72491373]
[1766113633401,0.00592,86310.0,86290.0,0.72324761]
[1766113634245,0.00592,86310.0,86290.0,1.06080539]
[1766113634453,0.01158694,86304.0,86286.0,0.00592]
[1766113634656,0.46117,86300.0,86286.0,0.00592]
[1766113634902,0.46117,86300.0,86280.0,1.11645337]
[1766113634903,0.46117,86300.0,86281.0,0.00592]
[1766113635030,0.00592,86303.0,86290.0,1.06080539]
[1766113635234,0.00592,86303.0,86281.0,0.00592]
[1766113635235,0.001099,86290.0,86281.0,0.00592]
[1766113635543,0.01158936,86286.0,86263.0,0.58014]
[1766113635742,0.47275936,86286.0,86264.0,0.13714]
[1766113636115,0.46117,86286.0,86264.0,0.14306]
[1766113636626,0.46127979,86286.0,86264.0,0.05236]
[1766113636832,0.46117,86282.0,86258.0,0.00592]
[1766113637056,0.01158963,86284.0,86260.0,1.06080539]
[1766113637057,1.0898,86281.0,86260.0,1.06080539]
[1766113637277,0.0115903,86279.0,86260.0,1.06080539]
[1766113637474,0.46117,86280.0,86260.0,1.06080539]
[1766113637675,1.08388,86280.0,86260.0,1.06080539]
[1766113638259,0.00010979,86286.0,86250.0,0.23188241]
[1766113638260,0.01158748,86300.0,86271.0,0.00099]
[1766113638500,0.00592,86299.0,86277.0,1.06080539]
[1766113638911,0.62271,86305.0,86277.0,1.06080539]
[1766113639117,0.0907,86314.0,86271.0,0.00036641]
[1766113639118,0.62271,86314.0,86290.0,1.06080539]
[1766113639334,1.08388,86324.0,86300.0,1.06080539]
[1766113639526,0.00592,86315.0,86310.0,1.06080539]
[1766113639792,0.00592,86315.0,86301.0,0.58014]
[1766113639987,0.00592,86319.0,86301.0,0.58014]
[1766113640124,0.46117,86324.0,86310.0,1.06080539]
[1766113640323,0.00592,86323.0,86310.0,1.06080539]
[1766113640528,0.00592,86323.0,86302.0,0.01158721]
[1766113640529,0.00602979,86323.0,86302.0,0.01158721]
[1766113640840,0.00602979,86323.0,86301.0,0.59172735]
[1766113640841,0.00602979,86323.0,86301.0,0.58014]
[1766113641041,0.00010979,86323.0,86301.0,0.59172735]
[1766113641250,0.00592,86322.0,86303.0,0.58014]
[1766113641450,0.00592,86322.0,86304.0,0.00592]
[1766113641647,0.00592,86321.0,86307.0,0.58014]
[1766113642007,0.00592,86321.0,86304.0,0.00592]
[1766113642390,0.00010979,86323.0,86311.0,0.591726]
[1766113642592,0.00592,86325.0,86317.0,1.06080539]
[1766113642797,0.62271,86340.0,86317.0,1.06080539]
[1766113642999,0.62271,86340.0,86309.0,0.00074]
[1766113643000,0.0002,86349.0,86331.0,0.01158332]
[1766113643174,0.0002,86349.0,86336.0,1.06063184]
[1766113643752,0.0002,86349.0,86331.0,0.00010979]
[1766113644023,0.00602,86346.0,86331.0,0.00010979]
[1766113645147,0.0001,86346.0,86331.0,0.00010979]
[1766113645510,0.0001,86346.0,86333.0,0.58014]
[1766113645714,0.01157956,86359.0,86334.0,0.0138995]
[1766113645916,0.00592,86358.0,86340.0,1.06080539]
[1766113646134,0.46117,86364.0,86333.0,0.05564798]
[1766113646135,0.62271,86371.0,86348.0,1.06080539]
[1766113646332,0.01157836,86368.0,86349.0,0.00592]
[1766113646554,0.01157822,86369.0,86349.0,0.00592]
[1766113646758,0.68993594,86371.0,86350.0,0.01389693]
[1766113646759,0.00592,86368.0,86350.0,0.01389693]
[1766113647098,0.00592,86368.0,86349.0,0.00592]
[1766113647237,0.46117,86375.0,86350.0,0.01158077]
[1766113647450,0.00592,86374.0,86360.0,1.06080539]
[1766113647641,0.00592,86374.0,86350.0,1.06080539]
[1766113648263,0.46117,86375.0,86351.0,0.59172064]
[1766113648476,0.00592,86374.0,86360.0,1.06080539]
[1766113648874,0.00010979,86375.0,86360.0,1.06080539]
[1766113650171,0.00010979,86375.0,86360.0,1.64094539]
[1766113650380,0.00010979,86375.0,86351.0,0.01158064]
[1766113650381,1.08398979,86375.0,86361.0,0.00592]
[1766113650579,1.0898,86374.0,86362.0,0.00592]
[1766113650782,0.00010979,86375.0,86362.0,0.00592]
[1766113651669,7.9e-07,86375.0,86364.0,0.58014]
[1766113651800,7.9e-07,86375.0,86365.0,0.58014]
[1766113652585,7.9e-07,86375.0,86367.0,0.58014]
[1766113652785,7.9e-07,86375.0,86369.0,0.58014]
[1766113654086,7.9e-07,86375.0,86368.0,0.00592]
[1766113654299,7.9e-07,86375.0,86371.0,0.58014]
[1766113654513,7.9e-07,86375.0,86372.0,0.59171782]
[1766113654725,7.9e-07,86375.0,86372.0,0.58014]
[1766113654981,7.9e-07,86375.0,86365.0,1.06080539]
[1766113654982,0.000109,86372.0,86365.0,1.06080539]
[1766113655201,0.000109,86372.0,86366.0,0.00592]
[1766113655640,7.9e-07,86375.0,86367.0,0.00592]
[1766113655857,0.0017873,86368.0,86367.0,0.00592]
[1766113656498,0.0007973,86368.0,86367.0,0.00592]
[1766113656712,7.9e-07,86375.0,86367.0,0.00592]
[1766113657596,7.9e-07,86375.0,86360.0,1.06080539]
[1766113657597,0.001099,86367.0,86360.0,1.06080539]
[1766113657817,7.9e-07,86375.0,86361.0,0.00592]
[1766113658037,0.00588,86384.0,86361.0,0.00592]
[1766113658038,0.01816382,86390.0,86366.0,0.38996]
[1766113658249,1.08388,86388.0,86367.0,0.00588]
[1766113658474,0.46117,86386.0,86367.0,0.00588]
[1766113658701,0.01157621,86384.0,86365.0,1.11645337]
[1766113658965,0.01157621,86384.0,86350.0,0.23161443]
[1766113658966,1.08388,86378.0,86366.0,0.00588]
[1766113659212,0.01745594,86386.0,86366.0,0.00588]
[1766113659213,0.62859,86386.0,86366.0,0.00588]
[1766113659630,0.62859,86386.0,86367.0,0.01157849]
[1766113659842,0.62859,86386.0,86370.0,1.06080539]
[1766113660071,0.01852958,86390.0,86371.0,0.40385355]
[1766113660277,0.00036576,86390.0,86380.0,1.06080539]
[1766113660482,0.00036576,86390.0,86379.0,0.00588]
[1766113661376,7.6e-07,86390.0,86387.0,0.40153581]
[1766113661567,0.0181613,86424.0,86396.0,0.38996]
[1766113661772,0.02984185,86424.0,86398.0,0.38996]
[1766113661973,0.01157099,86423.0,86400.0,1.06080539]
[1766113662319,0.46117,86416.0,86401.0,0.005515]
[1766113662572,0.01157246,86412.0,86401.0,0.005515]